fUSD/lending_fUSD_20250228
["ID","MTS","AMOUNT","RATE_DAILY","PERIOD"]
[354866290,1740759052254,-500.0,0.00056986,120]
[354866291,1740759052264,-500.0,0.00056986,120]
[354866292,1740759052274,-500.0,0.00056986,120]
[354866293,1740759052283,-500.0,0.00056986,120]
[354866294,1740759052292,-500.0,0.00056986,120]
[354866295,1740759052302,-500.0,0.00056986,120]
[354866296,1740759052312,-854.970573,0.00056986,120]
[354866297,1740759052322,-169.03774988,0.00056986,120]
[354866298,1740759052332,-500.0,0.00056986,120]
[354866299,1740759052342,-558.13,0.00056986,120]
[354866300,1740759052351,-500.0,0.00056986,120]
[354866301,1740759052361,-500.0,0.00056986,120]
[354866302,1740759052371,-500.0,0.00056986,120]
[354866303,1740759052382,-500.0,0.00056986,120]
[354866304,1740759052392,-500.0,0.00056986,120]
[354866305,1740759052402,-500.0,0.00056986,120]
[354866306,1740759052412,-500.0,0.00056986,120]
[354866307,1740759052422,-500.0,0.00056986,120]
[354866308,1740759052433,-500.0,0.00056986,120]
[354866309,1740759052445,-500.0,0.00056986,120]
[354866310,1740759052455,-500.0,0.00056986,120]
[354866311,1740759052466,-500.0,0.00056986,120]
[354866312,1740759052475,-500.0,0.00056986,120]
[354866313,1740759052569,-500.0,0.00056986,120]
[354866314,1740759052580,-500.0,0.00056986,120]
[354866315,1740759052600,-500.0,0.00056986,120]
[354866316,1740759052610,-500.0,0.00056986,120]
[354866317,1740759052620,-500.0,0.00056986,120]
[354866318,1740759052630,-500.0,0.00056986,120]
[354866319,1740759052640,-654.26,0.00056986,120]
[354866320,1740759052650,-500.0,0.00056986,120]
[354866321,1740759052660,-500.0,0.00056986,120]
[354866322,1740759052670,-305.42745712,0.00056986,120]
[354866323,1740759052679,-500.0,0.00056986,120]
[354866324,1740759052689,-500.0,0.00056986,120]
[354866325,1740759052701,-500.0,0.00056986,120]
[354866326,1740759052711,-500.0,0.00056986,120]
[354866327,1740759052720,-500.0,0.00056986,120]
[354866328,1740759052730,-227.28751804,0.00056986,120]
[354866329,1740759052741,-500.0,0.00056986,120]
[354866330,1740759052751,-500.0,0.00056986,120]
[354866331,1740759052760,-500.0,0.00056986,120]
[354866332,1740759052771,-216.76238212,0.00056986,120]
[354866333,1740759052782,-500.0,0.00056986,120]
[354866334,1740759052793,-500.0,0.00056986,120]
[354866335,1740759052803,-500.0,0.00056986,120]
[354866336,1740759052812,-500.0,0.00056986,120]
[354866337,1740759052823,-500.0,0.00056986,120]
[354866338,1740759052833,-432.1406689,0.00056986,120]
[354866339,1740759052842,-500.0,0.00056986,120]
[354866340,1740759052852,-500.0,0.00056986,120]
[354866341,1740759052862,-729.596429,0.00056986,120]
[354866342,1740759052871,-991.64,0.00056986,120]
[354866343,1740759052881,-500.0,0.00056986,120]
[354866344,1740759052891,-500.0,0.00056986,120]
[354866345,1740759052901,-376.19319631,0.00056986,120]
[354866346,1740759052910,-500.0,0.00056986,120]
[354866347,1740759052920,-1127.13,0.00056986,120]
[354866348,1740759052929,-500.0,0.00056986,120]
[354866349,1740759052939,-500.0,0.00056986,120]
[354866350,1740759052951,-500.0,0.00056986,120]
[354866351,1740759052961,-2962.03,0.00056986,2]
[354866352,1740759052971,-500.0,0.00056986,120]
[354866353,1740759052980,-500.0,0.00056986,120]
[354866354,1740759052990,-554.27,0.00056986,120]
[354866355,1740759053000,-500.0,0.00056986,120]
[354866356,1740759053009,-542.97,0.00056986,120]
[354866357,1740759053019,-242.41,0.00056986,120]
[354866358,1740759053028,-500.0,0.00056986,120]
[354866359,1740759053037,-500.0,0.00056986,120]
[354866360,1740759053047,-500.0,0.00056986,120]
[354866361,1740759053057,-500.0,0.00056986,120]
[354866362,1740759053067,-500.0,0.00056986,120]
[354866363,1740759053077,-500.0,0.00056986,120]
[354866364,1740759053087,-685.62,0.00056986,120]
[354866365,1740759053096,-500.0,0.00056986,120]
[354866366,1740759053106,-627.29,0.00056986,120]
[354866367,1740759053116,-500.0,0.00056986,120]
[354866368,1740759053126,-500.0,0.00056986,120]
[354866369,1740759053136,-1173.17,0.00056986,120]
[354866370,1740759053145,-500.0,0.00056986,120]
[354866371,1740759053154,-1000.0,0.00056986,120]
[354866372,1740759053164,-359.19409883,0.00056986,120]
[354866373,1740759053174,-1000.0,0.00056986,120]
[354866374,1740759053184,-151.0,0.00056986,120]
[354866375,1740759053196,-500.0,0.00056986,120]
[354866376,1740759053206,-500.0,0.00056986,120]
[354866377,1740759053215,-500.0,0.00056986,120]
[354866378,1740759053225,-500.0,0.00056986,120]
[354866379,1740759053235,-500.0,0.00056986,120]
[354866380,1740759053245,-500.0,0.00056986,120]
[354866381,1740759053255,-500.0,0.00056986,120]
[354866382,1740759053265,-500.0,0.00056986,120]
[354866383,1740759053275,-500.0,0.00056986,120]
[354866384,1740759053284,-500.0,0.00056986,120]
[354866385,1740759053294,-151.0,0.00056986,120]
[354866386,1740759053303,-500.0,0.00056986,120]
[354866387,1740759053312,-634.65,0.00056986,120]
[354866388,1740759053322,-500.0,0.00056986,120]
[354866389,1740759053332,-500.0,0.00056986,120]
[354866390,1740759053342,-500.0,0.00056986,120]
[354866391,1740759053351,-500.0,0.00056986,120]
[354866392,1740759053361,-500.0,0.00056986,120]
[354866393,1740759053371,-500.0,0.00056986,120]
[354866394,1740759053380,-500.0,0.00056986,120]
[354866395,1740759053390,-500.0,0.00056986,120]
[354866396,1740759053400,-500.0,0.00056986,120]
[354866397,1740759053409,-500.0,0.00056986,120]
[354866398,1740759053418,-500.0,0.00056986,120]
[354866399,1740759053428,-500.0,0.00056986,120]
[354866400,1740759053438,-500.0,0.00056986,120]
[354866401,1740759053449,-500.0,0.00056986,120]
[354866402,1740759053458,-500.0,0.00056986,120]
[354866403,1740759053468,-500.0,0.00056986,100]
[354866404,1740759053477,-500.0,0.00056986,120]
[354866405,1740759053487,-500.0,0.00056986,120]
[354866406,1740759053496,-1485.92,0.00056986,120]
[354866407,1740759053506,-552.68,0.00056986,120]
[354866408,1740759053516,-500.0,0.00056986,120]
[354866409,1740759053526,-500.0,0.00056986,120]
[354866410,1740759053535,-500.0,0.00056986,120]
[354866411,1740759053545,-500.0,0.00056986,120]
[354866412,1740759053554,-1080.26,0.00056986,120]
[354866413,1740759053564,-500.0,0.00056986,120]
[354866414,1740759053574,-500.0,0.00056986,120]
[354866415,1740759053584,-500.0,0.00056986,120]
[354866416,1740759053594,-500.0,0.00056986,120]
[354866417,1740759053603,-401.51713303,0.00056986,120]
[354866418,1740759053613,-674.71,0.00056986,120]
[354866419,1740759053622,-500.0,0.00056986,120]
[354866420,1740759053631,-500.0,0.00056986,120]
[354866421,1740759053641,-500.0,0.00056986,120]
[354866422,1740759053652,-500.0,0.00056986,120]
[354866423,1740759053661,-771.67,0.00056986,120]
[354866424,1740759053671,-500.0,0.00056986,120]
[354866425,1740759053680,-500.0,0.00056986,120]
[354866426,1740759053689,-500.0,0.00056986,120]
[354866427,1740759053698,-189.35304304,0.00056986,120]
[354866428,1740759053707,-920.66,0.00056986,120]
[354866429,1740759053717,-500.0,0.00056986,120]
[354866430,1740759053726,-500.0,0.00056986,120]
[354866431,1740759053736,-500.0,0.00056986,120]
[354866432,1740759053748,-500.0,0.00056986,120]
[354866433,1740759053760,-500.0,0.00056986,120]
[354866434,1740759053771,-500.0,0.00056986,120]
[354866435,1740759053782,-500.0,0.00056986,120]
[354866436,1740759053791,-362.60118669,0.00056986,120]
[354866437,1740759053800,-500.0,0.00056986,120]
[354866438,1740759053811,-500.0,0.00056986,120]
[354866439,1740759053821,-500.0,0.00056986,120]
[354866440,1740759053830,-500.0,0.00056986,120]
[354866441,1740759053840,-500.0,0.00056986,120]
[354866442,1740759053853,-500.0,0.00056986,120]
[354866443,1740759053863,-2556.2,0.00056986,120]
[354866444,1740759053873,-500.0,0.00056986,120]
[354866445,1740759053883,-500.0,0.00056986,120]
[354866446,1740759053900,-500.0,0.00056986,120]
[354866447,1740759053910,-1254.06,0.00056986,120]
[354866448,1740759053919,-500.0,0.00056986,120]
[354866449,1740759053929,-500.0,0.00056986,120]
[354866450,1740759053939,-500.0,0.00056986,120]
[354866451,1740759053951,-567.3,0.00056986,120]
[354866452,1740759053960,-500.0,0.00056986,120]
[354866453,1740759053969,-500.0,0.00056986,120]
[354866454,1740759053979,-537.53230789,0.00056986,120]
[354866455,1740759053988,-500.0,0.00056986,120]
[354866456,1740759053998,-1000.0,0.00057,120]
[354866457,1740759054008,-10000.0,0.00057,120]
[354866458,1740759054018,-900.0,0.00057,58]
[354866459,1740759054027,-500.0,0.00057,120]
[354866460,1740759054037,-11369.53,0.00057,120]
[354866461,1740759054047,-22500.0,0.00057,120]
[354866462,1740759054056,-2192.49,0.00057,120]
[354866463,1740759054065,-556.33,0.00057038,120]
[354866464,1740759054075,-229.38126,0.00057088,30]
[354866465,1740759054084,-229.38126,0.00057288,30]
[354866466,1740759054094,-150.0,0.000574,120]
[354866467,1740759054104,-221.13,0.00057485,120]
[354866468,1740759054113,-229.38126,0.00057488,30]
[354866469,1740759054123,-10000.0,0.00057529,120]
[354866470,1740759054132,-500.0,0.00057534,7]
[354866471,1740759054142,-500.0,0.00057534,120]
[354866472,1740759054151,-500.0,0.00057534,120]
[354866473,1740759054161,-500.0,0.00057534,120]
[354866474,1740759054170,-500.0,0.00057534,120]
[354866475,1740759054179,-500.0,0.00057534,120]
[354866476,1740759054188,-450.0,0.00057534,120]
[354866477,1740759054198,-500.0,0.00057534,120]
[354866478,1740759054208,-154.618068,0.00057534,120]
[354866479,1740759054216,-500.0,0.00057534,120]
[354866480,1740759054226,-500.0,0.00057534,120]
[354866481,1740759054235,-500.0,0.00057534,120]
[354866482,1740759054245,-500.0,0.00057534,120]
[354866483,1740759054255,-500.0,0.00057534,120]
[354866484,1740759054264,-854.970573,0.00057534,120]
[354866485,1740759054273,-500.0,0.00057534,120]
[354866486,1740759054283,-558.13,0.00057534,120]
[354866487,1740759054292,-500.0,0.00057534,120]
[354866488,1740759054302,-500.0,0.00057534,120]
[354866489,1740759054400,-224.01131853,0.00057534,120]
[354866490,1740759054410,-500.0,0.00057534,120]
[354866491,1740759054420,-500.0,0.00057534,120]
[354866492,1740759054429,-500.0,0.00057534,120]
[354866493,1740759054439,-500.0,0.00057534,120]
[354866494,1740759054449,-500.0,0.00057534,120]
[354866495,1740759054458,-500.0,0.00057534,120]
[354866496,1740759054468,-500.0,0.00057534,120]
[354866497,1740759054477,-500.0,0.00057534,120]
[354866498,1740759054486,-500.0,0.00057534,120]
[354866499,1740759054496,-500.0,0.00057534,120]
[354866500,1740759054506,-500.0,0.00057534,120]
[354866501,1740759054515,-500.0,0.00057534,120]
[354866502,1740759054524,-500.0,0.00057534,120]
[354866503,1740759054534,-500.0,0.00057534,120]
[354866504,1740759054544,-500.0,0.00057534,120]
[354866505,1740759054553,-654.26,0.00057534,120]
[354866506,1740759054563,-500.0,0.00057534,120]
[354866507,1740759054572,-500.0,0.00057534,120]
[354866508,1740759054581,-500.0,0.00057534,120]
[354866509,1740759054590,-500.0,0.00057534,120]
[354866510,1740759054599,-500.0,0.00057534,120]
[354866511,1740759054609,-500.0,0.00057534,120]
[354866512,1740759054618,-536.33717473,0.00057534,120]
[354866513,1740759054628,-500.0,0.00057534,120]
[354866514,1740759054637,-500.0,0.00057534,120]
[354866515,1740759054646,-500.0,0.00057534,120]
[354866516,1740759054655,-192.80733348,0.00057534,120]
[354866517,1740759054665,-500.0,0.00057534,120]
[354866518,1740759054674,-500.0,0.00057534,120]
[354866519,1740759054683,-500.0,0.00057534,120]
[354866520,1740759054692,-500.0,0.00057534,120]
[354866521,1740759054702,-500.0,0.00057534,120]
[354866522,1740759054711,-500.0,0.00057534,120]
[354866523,1740759054721,-991.64,0.00057534,120]
[354866524,1740759054730,-500.0,0.00057534,120]
[354866525,1740759054739,-500.0,0.00057534,120]
[354866526,1740759054748,-500.0,0.00057534,120]
[354866527,1740759054757,-1127.13,0.00057534,120]
[354866528,1740759054768,-500.0,0.00057534,120]
[354866529,1740759054779,-500.0,0.00057534,120]
[354866530,1740759054789,-500.0,0.00057534,120]
[354866531,1740759054798,-2962.03,0.00057534,2]
[354866532,1740759054808,-500.0,0.00057534,120]
[354866533,1740759054818,-500.0,0.00057534,120]
[354866534,1740759054827,-554.27,0.00057534,120]
[354866535,1740759054836,-500.0,0.00057534,120]
[354866536,1740759054846,-542.97,0.00057534,120]
[354866537,1740759054856,-500.0,0.00057534,120]
[354866538,1740759054866,-500.0,0.00057534,120]
[354866539,1740759054875,-500.0,0.00057534,120]
[354866540,1740759054885,-500.0,0.00057534,120]
[354866541,1740759054894,-500.0,0.00057534,120]
[354866542,1740759054904,-500.0,0.00057534,120]
[354866543,1740759054914,-685.62,0.00057534,120]
[354866544,1740759054923,-500.0,0.00057534,120]
[354866545,1740759054933,-627.29,0.00057534,120]
[354866546,1740759054942,-500.0,0.00057534,120]
[354866547,1740759054953,-500.0,0.00057534,120]
[354866548,1740759054963,-1173.17,0.00057534,120]
[354866549,1740759054973,-500.0,0.00057534,120]
[354866550,1740759054983,-1000.0,0.00057534,120]
[354866551,1740759054992,-1000.0,0.00057534,120]
[354866552,1740759055002,-500.0,0.00057534,120]
[354866553,1740759055011,-500.0,0.00057534,120]
[354866554,1740759055021,-500.0,0.00057534,120]
[354866555,1740759055030,-500.0,0.00057534,120]
[354866556,1740759055040,-500.0,0.00057534,120]
[354866557,1740759055049,-500.0,0.00057534,120]
[354866558,1740759055059,-500.0,0.00057534,120]
[354866559,1740759055068,-500.0,0.00057534,120]
[354866560,1740759055077,-500.0,0.00057534,120]
[354866561,1740759055087,-500.0,0.00057534,120]
[354866562,1740759055096,-500.0,0.00057534,120]
[354866563,1740759055106,-634.65,0.00057534,120]
[354866564,1740759055115,-611.56583661,0.00057534,120]
[354866565,1740759055124,-500.0,0.00057534,120]
[354866566,1740759055134,-500.0,0.00057534,120]
[354866567,1740759055143,-539.87,0.00057534,120]
[354866568,1740759055152,-500.0,0.00057534,120]
[354866569,1740759055162,-500.0,0.00057534,120]
[354866570,1740759055171,-500.0,0.00057534,120]
[354866571,1740759055180,-500.0,0.00057534,120]
[354866572,1740759055190,-500.0,0.00057534,120]
[354866573,1740759055201,-175.17115151,0.00057534,120]
[354866574,1740759055211,-500.0,0.00057534,120]
[354866575,1740759055220,-500.0,0.00057534,120]
[354866576,1740759055231,-500.0,0.00057534,120]
[354866577,1740759055241,-500.0,0.00057534,120]
[354866578,1740759055250,-500.0,0.00057534,120]
[354866579,1740759055261,-500.0,0.00057534,100]
[354866580,1740759055271,-500.0,0.00057534,120]
[354866581,1740759055281,-500.0,0.00057534,120]
[354866582,1740759055291,-1485.92,0.00057534,120]
[354866583,1740759055300,-552.68,0.00057534,120]
[354866584,1740759055309,-585.93742201,0.00057534,120]
[354866585,1740759055318,-500.0,0.00057534,120]
[354866586,1740759055327,-500.0,0.00057534,120]
[354866587,1740759055337,-500.0,0.00057534,120]
[354866588,1740759055346,-1080.26,0.00057534,120]
[354866589,1740759055356,-500.0,0.00057534,120]
[354866590,1740759055365,-500.0,0.00057534,120]
[354866591,1740759055374,-500.0,0.00057534,120]
[354866592,1740759055383,-674.71,0.00057534,120]
[354866593,1740759055393,-500.0,0.00057534,120]
[354866594,1740759055402,-500.0,0.00057534,120]
[354866595,1740759055412,-500.0,0.00057534,120]
[354866596,1740759055421,-500.0,0.00057534,120]
[354866597,1740759055431,-771.67,0.00057534,120]
[354866598,1740759055440,-500.0,0.00057534,120]
[354866599,1740759055451,-500.0,0.00057534,120]
[354866600,1740759055461,-500.0,0.00057534,120]
[354866601,1740759055471,-920.66,0.00057534,120]
[354866602,1740759055480,-500.0,0.00057534,120]
[354866603,1740759055490,-500.0,0.00057534,120]
[354866604,1740759055500,-500.0,0.00057534,120]
[354866605,1740759055509,-500.0,0.00057534,120]
[354866606,1740759055519,-500.0,0.00057534,120]
[354866607,1740759055528,-500.0,0.00057534,120]
[354866608,1740759055538,-500.0,0.00057534,120]
[354866609,1740759055547,-500.0,0.00057534,120]
[354866610,1740759055558,-500.0,0.00057534,120]
[354866611,1740759055568,-500.0,0.00057534,120]
[354866612,1740759055578,-284.91298272,0.00057534,120]
[354866613,1740759055588,-500.0,0.00057534,120]
[354866614,1740759055597,-500.0,0.00057534,120]
[354866615,1740759055607,-2556.2,0.00057534,120]
[354866616,1740759055616,-500.0,0.00057534,120]
[354866617,1740759055626,-500.0,0.00057534,120]
[354866618,1740759055636,-500.0,0.00057534,120]
[354866619,1740759055646,-1254.06,0.00057534,120]
[354866620,1740759055656,-500.0,0.00057534,120]
[354866621,1740759055666,-623.63010851,0.00057534,120]
[354866622,1740759055675,-500.0,0.00057534,120]
[354866623,1740759055684,-567.3,0.00057534,120]
[354866624,1740759055694,-500.0,0.00057534,120]
[354866625,1740759055705,-500.0,0.00057534,120]
[354866626,1740759055715,-500.0,0.00057534,120]
[354866627,1740759055724,-1000.0,0.00057534,120]
[354866628,1740759055734,-400.0,0.0005767,30]
[354866629,1740759055743,-229.38126,0.00057688,30]
[354866630,1740759055752,-2354.88174518,0.000578,30]
[354866631,1740759055762,-16182.0,0.000578,30]
[354866632,1740759055772,-4238.50081211,0.000578,15]
[354866633,1740759055784,-151.0,0.00057836,120]
[354866634,1740759055793,-151.0,0.0005786,120]
[354866635,1740759055803,-151.0,0.0005786,120]
[354866636,1740759055812,-18895.9576933,0.0005786,2]
[354866637,1740759055823,-7272.6811172,0.0005786,2]
[354866638,1740759055832,-5070.0,0.0005788,33]
[354866639,1740759055842,-5070.0,0.0005788,34]
[354866640,1740759055854,-229.38126,0.00057888,30]
[354866641,1740759055865,-278866.7709605,0.0005789,120]
[354866642,1740759055874,-3500.0,0.0005789,120]
[354866643,1740759055884,-151.0,0.0005789,120]
[354866644,1740759055893,-729.596429,0.0005789,120]
[354866645,1740759055903,-151.0,0.0005789,120]
[354866646,1740759055913,-151.0,0.0005789,120]
[354866647,1740759055923,-151.0,0.0005789,120]
[354866648,1740759055932,-300.0,0.00057899,30]
[354866649,1740759055942,-100000.0,0.000579,68]
[354866650,1740759055953,-4066.21983138,0.000579,2]
[354866651,1740759056170,-262200.58898659,0.000579,2]
[354866652,1740759056186,-5300.0,0.000579,2]
[354866653,1740759056408,-0.27592665,0.000579,2]
[354866654,1740759057624,-1112.0,0.00041363,2]
[354866655,1740759057634,-1112.0,0.00044363,2]
[354866656,1740759057645,-1112.0,0.00047363,2]
[354866657,1740759057654,-290.568,0.00050363,120]
[354866658,1740759057663,-325.0,0.00051848,7]
[354866659,1740759057673,-16048.432,0.000579,2]
[354866660,1740759057834,-307.19199869,0.00053078,30]
[354866661,1740759057846,-675.580464,0.00053078,30]
[354866662,1740759058010,-5.72753731,0.00053078,30]
[354866663,1740759058019,-1679.29612523,0.000579,2]
[354866705,1740760231736,-370.04022624,0.000149,2]
[354866709,1740760231816,-543.5334855,0.000149,2]
[354866710,1740760231827,-41.64454117,0.000149,2]
[354866711,1740760231840,-149.4116273,0.000149,2]
[354866712,1740760231849,-159.94679379,0.00014973,2]
[354866713,1740760231861,-35.84205431,0.00014999,2]
[354866714,1740760231874,-535.72583312,0.00014999,2]
[354866715,1740760231885,-655.15368352,0.00015,2]
[354866716,1740760231952,-4061.06578851,0.00015,2]
[354866717,1740760231964,-400.47061198,0.00015,2]
[354866718,1740760231977,-1000.0,0.00015,2]
[354866719,1740760232059,-4863.28192416,0.00015,2]
[354866720,1740760232073,-892.32707503,0.00015,2]
[354866721,1740760232209,-363.65,0.00015,2]
[354866722,1740760232221,-1457.60655131,0.00015,2]
[354866723,1740760232272,-36769.54618685,0.00015,2]
[354866727,1740760237741,-303.71150753,0.00015,2]
[354866728,1740760237803,-2085689.34144952,0.00015,2]
[354866729,1740760237814,-5912.0656056,0.00015,2]
[354866730,1740760237824,-899549.58153635,0.00015,2]
[354866751,1740760239952,-306.66363901,0.00015,2]
[354866752,1740760239964,-6660.30000003,0.00015,2]
[354866811,1740760243687,-469774.00408967,0.00015,2]
[354866816,1740760246012,-35293.37923371,0.00015,2]
[354866817,1740760246023,-180593.01674549,0.00015,2]
[354866818,1740760246212,-6658.6339857,0.00015,2]
[354866819,1740760293665,-50000.0,0.00015,2]
[354866829,1740760681396,50246.57893088,0.000148,2]
[354866830,1740760863330,312.86245,0.000148,2]
[354866835,1740760953087,-300.0,0.00014999,2]
[354866836,1740760953118,-9700.0,0.00015,2]
[354866839,1740761319947,-3915.0,0.00019178,15]
[354866840,1740761336983,-180.77078562,0.000149,2]
[354866841,1740761337013,-82.93933975,0.000149,2]
[354866859,1740761431886,-150.0,0.00014999,2]
[354866860,1740761431897,-300.0,0.00014999,2]
[354866861,1740761431906,-27739.06992448,0.00015,2]
[354866862,1740761431917,-260.71871,0.00015,2]
[354866863,1740761431928,-450.0,0.0001639,2]
[354866864,1740761431939,-150.0,0.0001639,2]
[354866865,1740761431949,-420.0,0.00016416,2]
[354866866,1740761431959,-450.0,0.000165,2]
[354866867,1740761431971,-150.0,0.000165,2]
[354866868,1740761431985,-450.0,0.000165,2]
[354866869,1740761431994,-150.0,0.000165,2]
[354866870,1740761432005,-1482.49259408,0.000165,2]
[354866871,1740761432017,-587.0,0.00017966,2]
[354866872,1740761432028,-488.0,0.00019663,2]
[354866873,1740761432039,-728.26375388,0.000199,2]
[354866874,1740761432050,-728.26375369,0.000199,2]
[354866875,1740761432062,-728.26375369,0.000199,2]
[354866876,1740761432073,-1000.0,0.00019999,2]
[354866877,1740761432086,-2273.66655139,0.0002,4]
[354866878,1740761432097,-260.71871,0.0002,2]
[354866879,1740761432107,-728.26375369,0.00020762,2]
[354866880,1740761432118,-250.0,0.00021,2]
[354866881,1740761432128,-237.0,0.000216,2]
[354866882,1740761432140,-728.26375369,0.00022383,3]
[354866883,1740761432151,-300.0,0.00023,2]
[354866884,1740761432165,-728.26375369,0.00024003,3]
[354866885,1740761432178,-229.60579843,0.00025,2]
[354866886,1740761432198,-120.39420157,0.00025,2]
[354866887,1740761432208,-260.71871,0.00025,2]
[354866888,1740761432219,-728.26375369,0.00025624,4]
[354866889,1740761432230,-496.681,0.00026183,12]
[354866890,1740761432242,-377.42,0.00026986,120]
[354866891,1740761432252,-400.0,0.00027,2]
[354866892,1740761432262,-411.4,0.00027071,2]
[354866893,1740761432271,-728.26375369,0.00027245,4]
[354866894,1740761432281,-162.0,0.00028382,30]
[354866895,1740761432292,-728.26375369,0.00028866,5]
[354866896,1740761432303,-450.0,0.00029,2]
[354866897,1740761432314,-411.4,0.00029335,2]
[354866898,1740761432324,-500.0,0.0003,120]
[354866899,1740761432335,-1736.53871898,0.0003,2]
[354866900,1740761432345,-260.71871,0.0003,2]
[354866901,1740761432354,-164.78,0.00030045,2]
[354866902,1740761432363,-966.1939,0.00030087,2]
[354866903,1740761432373,-738.58391766,0.00030187,3]
[354866904,1740761435659,-6100.52241716,0.00030187,3]
[354866905,1740761435727,-568.55219196,0.00030187,3]
[354866906,1740761435742,-1103.55713475,0.00030187,3]
[354866907,1740761435869,-1000.398,0.00030187,3]
[354866908,1740761435881,-1929.51852941,0.00030187,3]
[354866909,1740761435893,-5908.55084751,0.00030187,3]
[354866910,1740761435949,-287.97634179,0.00030187,3]
[354866929,1740761437923,-11165.0,0.00030187,3]
[354866930,1740761437935,-6193.21174839,0.00030187,3]
[354866931,1740761437945,-728.26375369,0.00030486,5]
[354866933,1740761437955,-7686.86,0.00030981,2]
[354866935,1740761437966,-500.0,0.00031,2]
[354866936,1740761437976,-1653.57743981,0.00031171,2]
[354866937,1740761438005,-22246.42256019,0.00031171,2]
[354866938,1740761438015,-872.84,0.00031273,2]
[354866939,1740761438025,-150.35,0.00031407,2]
[354866940,1740761438036,-954.41581111,0.0003143,4]
[354866941,1740761438047,-250.0,0.00031447,2]
[354866942,1740761438057,-165.84,0.00031565,2]
[354866943,1740761438068,-411.4,0.00031599,2]
[354866944,1740761438079,-1914.38920646,0.0003183,2]
[354866945,1740761438090,-1349.6369,0.0003183,2]
[354866946,1740761438100,-30573.03940102,0.0003193,30]
[354866947,1740761438148,-338.748,0.0003193,30]
[354866948,1740761438228,-1090.03889091,0.0003193,30]
[354866949,1740761438244,-1268.81067887,0.0003193,4]
[354866950,1740761438254,-12654.72740385,0.0003193,2]
[354866951,1740761438265,-908.87834415,0.0003193,3]
[354866952,1740761438276,-1208.32906414,0.0003193,30]
[354866953,1740761438289,-3857.45630603,0.0003193,30]
[354866954,1740761438299,-728.26375369,0.00032107,6]
[354866955,1740761438308,-150.0,0.00032145,7]
[354866956,1740761438319,-1353.9596,0.00032298,2]
[354866957,1740761438329,-1000.0,0.00032328,2]
[354866958,1740761438339,-15.73835375,0.00032398,2]
[354866959,1740761438351,-184.26164625,0.00032398,2]
[354866960,1740761438360,-177.03,0.00032435,2]
[354866961,1740761438370,-390.2899,0.00032527,2]
[354866962,1740761438380,-1646.597,0.00032527,2]
[354866964,1740761438390,-3826.39350875,0.000328,2]
[354866966,1740761438403,-785.47695279,0.000328,2]
[354866967,1740761438414,-550.0,0.00033,2]
[354866968,1740761438424,-728.26375369,0.00033728,6]
[354866969,1740761438435,-411.4,0.00033863,2]
[354866970,1740761438444,-7072.23233352,0.00034019,2]
[354866971,1740761438457,-3858.30766648,0.00034019,2]
[354866972,1740761438467,-2500.0,0.0003403,2]